fUSD/lending_fUSD_20240713
["ID","MTS","AMOUNT","RATE_DAILY","PERIOD"]
[331937528,1720875174516,366.77071418,0.00010317,2]
[331937529,1720875176733,281.8210833,0.00010317,4]
[331937530,1720875178422,188.2913469,0.00010317,2]
[331937531,1720875179425,158.6746708,0.00010317,2]
[331937532,1720875189719,390.31452881,0.00010317,2]
[331937533,1720875192489,155.0,0.00010317,2]
[331937535,1720875215482,157.36699746,0.00010317,2]
[331937536,1720875245084,231.04068631,0.00010317,10]
[331937537,1720875265424,208.77698577,0.00010317,2]
[331937538,1720875275452,290.89367873,0.00010317,2]
[331937540,1720875287997,2812.47906079,0.00011199,2]
[331937544,1720875297507,177.8438922,0.00010317,2]
[331937545,1720875311397,2739.31422748,0.00011199,2]
[331937548,1720875319723,537.90359214,0.00011199,2]
[331937549,1720875334952,1883.79068713,0.00011199,2]
[331937550,1720875345879,848.69226864,0.00011199,2]
[331937551,1720875362113,439.80555877,0.00011199,2]
[331937552,1720875363581,485.00132535,0.00011199,2]
[331937555,1720875375123,156.09391946,0.00011199,2]
[331937556,1720875375466,290.89367873,0.00011199,2]
[331937557,1720875383857,263.83483544,0.00011199,2]
[331937558,1720875386267,155.17180538,0.00011199,2]
[331937559,1720875386715,155.0,0.00011199,2]
[331937560,1720875387866,159.27290932,0.00011199,2]
[331937561,1720875397296,158.26199635,0.00011199,2]
[331937562,1720875398596,297.19218126,0.00011199,2]
[331937563,1720875401387,155.0,0.00011199,2]
[331937565,1720875403457,155.59991449,0.00011199,2]
[331937566,1720875404592,253.60504205,0.00011199,2]
[331937567,1720875410246,214.90120291,0.00011199,2]
[331937568,1720875410368,155.0,0.00011199,2]
[331937569,1720875410551,425.18004382,0.00011199,2]
[331937570,1720875416007,155.27013329,0.00011199,2]
[331937571,1720875421407,202.67339357,0.00011199,2]
[331937572,1720875426161,251.5542779,0.00011199,2]
[331937573,1720875426578,444.59006542,0.00011199,2]
[331937574,1720875429040,155.0,0.00011199,2]
[331937575,1720875429957,155.41610123,0.00011199,2]
[331937576,1720875430591,450.95794745,0.00011199,2]
[331937577,1720875431674,218.11438004,0.00011199,2]
[331937578,1720875432373,339.40780952,0.00011199,2]
[331937580,1720875432583,196.65850358,0.00011199,2]
[331937581,1720875435552,155.0856672,0.00011199,2]
[331937582,1720875437678,155.52012646,0.00011199,2]
[331937583,1720875438329,156.39174927,0.00011199,2]
[331937584,1720875438667,265.47446231,0.00011199,2]
[331937585,1720875439234,155.0,0.00011199,10]
[331937586,1720875447144,155.32730712,0.00011199,2]
[331937587,1720875450087,155.0,0.00011199,10]
[331937588,1720875453612,169.0860346,0.00011199,2]
[331937589,1720875458937,155.0,0.00011199,2]
[331937590,1720875466814,413.21120921,0.00011199,2]
[331937591,1720875467461,290.80189814,0.00011199,2]
[331937592,1720875471989,266.67996782,0.00011199,2]
[331937593,1720875517323,297.70719904,0.00011199,2]
[331937595,1720875544648,158.75541604,0.00011199,2]
[331937596,1720875565090,155.0,0.00011199,10]
[331937597,1720875569315,1004.02895063,0.00025,60]
[331937598,1720875588167,-1000.0,0.00012157,2]
[331937599,1720875588194,-2479.58,0.00012176,2]
[331937600,1720875588221,-585.0,0.00012272,2]
[331937601,1720875588244,-150.0,0.00012272,2]
[331937602,1720875588267,-155.0,0.00012273,2]
[331937603,1720875588296,-155.0,0.00012273,2]
[331937604,1720875588321,-205.0,0.0001234,2]
[331937605,1720875588345,-205.0,0.0001242,2]
[331937606,1720875588368,-728.42,0.0001242,2]
[331937607,1720875597019,132327.93354328,0.00011199,2]
[331937608,1720875597043,63684.41654845,0.00011199,2]
[331937609,1720875668580,164.72,0.00010095,2]
[331937610,1720875672764,167.63655556,0.00010715,2]
[331937611,1720875672785,167.63655556,0.00010715,2]
[331937612,1720875672805,167.63655556,0.00010715,2]
[331937613,1720875672829,167.63655556,0.00010715,2]
[331937614,1720875672850,51.67377776,0.00010715,2]
[331937615,1720875704100,267.80999766,0.00011199,10]
[331937616,1720875718981,157.78166667,0.00010715,2]
[331937617,1720875719005,157.78166667,0.00010715,2]
[331937618,1720875719027,157.78166667,0.00010715,2]
[331937619,1720875719047,157.78166667,0.00010715,2]
[331937620,1720875719068,157.78166667,0.00010715,2]
[331937621,1720875719088,157.78166667,0.00010715,2]
[331937622,1720875719109,157.78166667,0.00010715,2]
[331937623,1720875719129,157.78166667,0.00010715,2]
[331937624,1720875719151,157.78166667,0.00010715,2]
[331937625,1720875719174,157.78166667,0.00010715,2]
[331937626,1720875719194,157.78166667,0.00010715,2]
[331937627,1720875719217,157.78166667,0.00010715,2]
[331937628,1720875719242,157.78166667,0.00010715,2]
[331937629,1720875719265,157.78166667,0.00010715,2]
[331937630,1720875719288,157.78166637,0.00010715,2]
[331937631,1720875719314,5040.96522879,0.00010715,2]
[331937633,1720875726670,150.0,0.00010715,2]
[331937634,1720875726692,150.0,0.00010715,2]
[331937635,1720875726713,150.0,0.00010715,2]
[331937636,1720875726734,150.0,0.00010715,2]
[331937637,1720875726756,150.0,0.00010715,2]
[331937638,1720875726777,150.0,0.00010715,2]
[331937639,1720875726801,150.0,0.00010715,2]
[331937640,1720875726822,150.0,0.00010715,2]
[331937641,1720875726842,150.0,0.00010715,2]
[331937642,1720875726861,150.0,0.00010715,2]
[331937643,1720875726881,150.0,0.00010715,2]
[331937644,1720875726901,150.0,0.00010715,2]
[331937645,1720875726922,150.0,0.00010715,2]
[331937646,1720875726942,150.0,0.00010715,2]
[331937647,1720875726963,150.0,0.00010715,2]
[331937648,1720875726984,150.0,0.00010715,2]
[331937649,1720875727004,150.0,0.00010715,2]
[331937650,1720875727025,150.0,0.00010715,2]
[331937651,1720875727045,150.0,0.00010715,2]
[331937652,1720875727066,150.0,0.00010715,2]
[331937653,1720875727087,150.0,0.00010715,2]
[331937654,1720875727108,150.0,0.00010715,2]
[331937655,1720875727128,150.0,0.00010715,2]
[331937656,1720875727149,150.0,0.00010715,2]
[331937657,1720875727175,150.0,0.00010715,2]
[331937658,1720875727195,150.0,0.00010715,2]
[331937659,1720875727218,15926.42753212,0.00010715,2]
[331937660,1720875731409,150.0,0.00010061,2]
[331937661,1720875731429,23.23,0.00010061,2]
[331937662,1720875736937,150.0,0.00011199,2]
[331937663,1720875736958,104.34908601,0.00011199,2]
[331937664,1720875777697,150.0,0.00011199,2]
[331937665,1720875777717,21.10849746,0.00011199,2]
[331937666,1720875778039,128.89150254,0.00011199,2]
[331937667,1720875778061,150.0,0.00011199,2]
[331937668,1720875778084,150.0,0.00011199,2]
[331937669,1720875778106,150.0,0.00011199,2]
[331937670,1720875778128,150.0,0.00011199,2]
[331937671,1720875778151,150.0,0.00011199,2]
[331937672,1720875778172,150.0,0.00011199,2]
[331937673,1720875778196,150.0,0.00011199,2]
[331937674,1720875778219,150.0,0.00011199,2]
[331937675,1720875778242,150.0,0.00011199,2]
[331937676,1720875778266,150.0,0.00011199,2]
[331937677,1720875778288,150.0,0.00011199,2]
[331937678,1720875778308,150.0,0.00011199,2]
[331937679,1720875778328,150.0,0.00011199,2]
[331937680,1720875778349,150.0,0.00011199,2]
[331937681,1720875778369,150.0,0.00011199,2]
[331937682,1720875778389,150.0,0.00011199,2]
[331937683,1720875778410,150.0,0.00011199,2]
[331937684,1720875778429,150.0,0.00011199,2]
[331937685,1720875778451,150.0,0.00011199,2]
[331937686,1720875778473,150.0,0.00011199,2]
[331937687,1720875778492,150.0,0.00011199,2]
[331937688,1720875778512,150.0,0.00011199,2]
[331937689,1720875778533,12162.88761547,0.00011199,2]
[331937690,1720875792438,150.0,0.00011199,2]
[331937691,1720875792460,150.0,0.00011199,2]
[331937692,1720875792480,150.0,0.00011199,2]
[331937693,1720875792500,150.0,0.00011199,2]
[331937694,1720875792521,150.0,0.00011199,2]
[331937695,1720875792541,150.0,0.00011199,2]
[331937696,1720875792561,150.0,0.00011199,2]
[331937697,1720875792580,150.0,0.00011199,2]
[331937698,1720875792600,150.0,0.00011199,2]
[331937699,1720875792620,150.0,0.00011199,2]
[331937700,1720875792639,150.0,0.00011199,2]
[331937701,1720875792659,150.0,0.00011199,2]
[331937702,1720875792678,150.0,0.00011199,2]
[331937703,1720875792698,150.0,0.00011199,2]
[331937704,1720875792717,150.0,0.00011199,2]
[331937705,1720875792738,12327.83659403,0.00011199,2]
[331937706,1720875799498,1216.17801083,0.00011199,2]
[331937707,1720875800542,150.0,0.00011199,2]
[331937708,1720875800564,9.95717352,0.00011199,2]
[331937709,1720875834014,150.0,0.00011199,2]
[331937710,1720875834034,150.0,0.00011199,2]
[331937711,1720875834054,150.0,0.00011199,2]
[331937712,1720875834074,150.0,0.00011199,2]
[331937713,1720875834094,150.0,0.00011199,2]
[331937714,1720875834113,150.0,0.00011199,2]
[331937715,1720875834134,150.0,0.00011199,2]
[331937716,1720875834154,150.0,0.00011199,2]
[331937717,1720875834175,150.0,0.00011199,2]
[331937718,1720875834198,156.04591424,0.00011199,2]
[331937719,1720875834219,1276.46265942,0.00011199,2]
[331937720,1720875847439,292.87772794,0.00011199,2]
[331937721,1720875849360,263.29075983,0.00011199,2]
[331937722,1720875866917,211.539,0.00011199,2]
[331937723,1720875882644,2142.27228567,0.00011199,2]
[331937724,1720875887337,181.35779148,0.00011199,2]
[331937725,1720875890460,885.18695533,0.00011199,2]
[331937726,1720875890744,155.0,0.00011199,2]
[331937727,1720875893386,1014.8383115,0.00011199,2]
[331937728,1720875911024,266.67996782,0.00011199,2]
[331937729,1720875937429,8707.2694009,0.00011199,2]
[331937730,1720875951712,200.0,0.0001092,2]
[331937731,1720875954388,2833.12316484,0.00011199,2]
[331937732,1720875954480,300.0,0.00011199,2]
[331937733,1720875954618,196.31662455,0.00011199,2]
[331937734,1720875969298,35620.80251917,0.00011199,2]
[331937735,1720875978355,263.14069291,0.00011199,2]
[331937736,1720875999877,1048.1930682,0.00011199,2]
[331937737,1720876010407,7828.41576356,0.00011199,2]
[331937741,1720876044115,3813.62160316,0.00011199,2]
[331937744,1720876047692,1250.108649,0.00011199,2]
[331937745,1720876058687,158.75541604,0.00011199,2]
[331937746,1720876067635,258.06682828,0.00011143,2]
[331937747,1720876087745,5390.25833766,0.00011199,2]
[331937748,1720876099942,201.94529503,0.00011199,2]
[331937757,1720876120297,35620.80251917,0.00011199,2]
[331937765,1720876146460,1614.891351,0.00011199,2]
[331937771,1720876158632,9246.73344542,0.00011199,2]
[331937777,1720876168662,1103.77601174,0.00011199,2]
[331937782,1720876175691,4463.77591731,0.00011199,2]
[331937783,1720876177375,1265.01058332,0.00011199,2]
[331937788,1720876193685,2199.77755191,0.00011199,2]
[331937789,1720876194422,164.72,0.00010014,2]
[331937790,1720876198064,165.4084403,0.00011199,2]
[331937791,1720876199733,706.43,0.00010556,2]
[331937792,1720876200815,306.3684908,0.00011199,2]
[331937793,1720876206355,1297.11014396,0.00011199,2]
[331937794,1720876206931,200.0,0.00011199,2]
[331937796,1720876224137,6223.59863334,0.00011199,2]
[331937797,1720876230155,300.0,0.00011199,2]
[331937798,1720876231037,7556.18852005,0.00011199,2]
[331937802,1720876234302,-500.0,0.0001126,2]
[331937803,1720876234312,-500.0,0.0001126,2]
[331937804,1720876234321,-503.0933474,0.0001126,2]
[331937805,1720876234331,-254.40293043,0.00012302,2]
[331937806,1720876234341,-155.063689,0.00012302,2]
[331937807,1720876234351,-155.0,0.00012302,2]
[331937808,1720876234360,-169.8426272,0.00012302,2]
[331937809,1720876234369,-217.44785107,0.00012314,2]
[331937810,1720876234379,-265.25525676,0.00012314,2]
[331937811,1720876234388,-250.0,0.00012456,2]
[331937812,1720876234398,-205.0,0.0001251,2]
[331937813,1720876234408,-500.0,0.00012533,2]
[331937814,1720876234418,-250.0,0.00012538,2]
[331937815,1720876234427,-192.18,0.00012542,2]
[331937816,1720876234438,-500.0,0.0001255,2]
[331937817,1720876234448,-499.99,0.0001255,2]
[331937818,1720876234457,-200.0,0.00012561,2]
[331937819,1720876234467,-370.57,0.00012561,2]
[331937820,1720876234476,-178.4,0.00012561,2]
[331937821,1720876234489,-726.27,0.00012569,2]
[331937822,1720876234498,-205.0,0.000126,2]
[331937823,1720876234508,-264.35774578,0.000126,2]
[331937824,1720876234518,-555.8,0.00012605,2]
[331937825,1720876234528,-299.99,0.00012605,2]
[331937826,1720876234538,-150.99,0.00012606,2]
[331937827,1720876234547,-394.57,0.00012609,2]
[331937828,1720876234557,-205.0,0.0001269,2]
[331937829,1720876234567,-205.0,0.0001277,2]
[331937830,1720876234576,-706.43,0.0001282,2]
[331937831,1720876234587,-205.0,0.0001286,2]
[331937833,1720876234599,-500.0,0.00012904,2]
[331937835,1720876234608,-500.0,0.00012904,2]
[331937836,1720876234618,-205.0,0.0001295,2]
[331937839,1720876234631,-150.0,0.00012999,2]
[331937840,1720876234641,-12915.45256069,0.00013,2]
[331937841,1720876234658,-6340.54743931,0.00013,2]
[331937842,1720876234667,-205.0,0.0001304,2]
[331937843,1720876234676,-832.53,0.00013041,2]
[331937844,1720876234686,-832.53,0.00013041,2]
[331937845,1720876234696,-832.53,0.00013041,2]
[331937846,1720876234707,-832.53,0.00013041,2]
[331937847,1720876234717,-157.78,0.00013041,2]
[331937848,1720876234727,-188.85,0.00013068,2]
[331937849,1720876234738,-205.0,0.0001312,2]
[331937850,1720876234747,-2056.941,0.0001312,2]
[331937851,1720876234757,-443.1379196,0.00013128,2]
[331937852,1720876234767,-158.47133143,0.00013128,2]
[331937853,1720876234776,-158.75541604,0.00013128,2]
[331937854,1720876234786,-9024.46846949,0.00013128,2]
[331937855,1720876234798,-1787.69321694,0.00013128,2]
[331937856,1720876234813,-24808.64083274,0.00013128,2]
[331937857,1720876234823,-276.34359382,0.00013128,2]
[331937858,1720876234832,-419.58,0.00013141,2]
[331937859,1720876234842,-164.99,0.00013178,2]
[331937860,1720876234851,-150.0,0.00013178,2]
[331937861,1720876234861,-300.0,0.00013178,2]
[331937862,1720876234871,-529.01,0.00013178,2]
[331937863,1720876234880,-529.13,0.00013178,2]
[331937864,1720876234889,-150.43,0.00013178,2]
[331937865,1720876234899,-529.13,0.00013178,2]
[331937866,1720876234908,-2380.0,0.0001318,2]
[331937867,1720876234917,-205.0,0.0001321,2]
[331937868,1720876234927,-205.0,0.000133,2]
[331937869,1720876234937,-9511.01401381,0.00013304,2]
[331937870,1720876234947,-200.0,0.00013311,2]
[331937871,1720876234956,-419.58,0.00013341,2]
[331937872,1720876234965,-419.58,0.00013341,2]
[331937873,1720876234975,-419.58,0.00013341,2]
[331937874,1720876234985,-205.0,0.0001339,2]
[331937875,1720876234994,-419.58,0.00013441,2]
[331937876,1720876235004,-419.58,0.00013441,2]
[331937877,1720876235014,-419.58,0.00013441,2]
[331937878,1720876235023,-419.58,0.00013441,2]
[331937879,1720876235033,-205.0,0.0001347,2]
[331937880,1720876235042,-256.19665946,0.00013472,2]
[331937881,1720876235052,-518.2432433,0.00013472,2]
[331937882,1720876235062,-153.372997,0.00013515,2]
[331937883,1720876235071,-228.31642,0.00013515,2]
[331937884,1720876235080,-164.251705,0.00013515,2]
[331937885,1720876235091,-150.762749,0.00013515,2]
[331937886,1720876235101,-292.32070238,0.00013516,2]
[331937887,1720876235111,-155.0,0.00013516,2]
[331937888,1720876235122,-2379.48035571,0.00013516,2]
[331937889,1720876235132,-419.58,0.00013541,2]
[331937890,1720876235141,-832.53,0.00013541,2]
[331937891,1720876235151,-832.53,0.00013541,2]
[331937892,1720876235161,-832.53,0.00013541,2]
[331937893,1720876235171,-9417.79475312,0.00013543,2]
[331937894,1720876235180,-205.0,0.0001356,2]
[331937895,1720876235190,-7489.87394247,0.00013574,2]
[331937896,1720876235199,-2495.83595523,0.00013574,2]
[331937897,1720876235209,-163.96834844,0.00013574,2]
[331937898,1720876235218,-181.21410071,0.00013574,2]
[331937899,1720876235227,-9246.73344542,0.00013574,2]
[331937900,1720876235236,-202.7635,0.00013636,2]
[331937901,1720876235246,-205.0,0.0001365,2]
[331937902,1720876235255,-1000.0,0.00013677,2]
[331937903,1720876235264,-228.31642,0.00013684,2]
[331937904,1720876235273,-1200.0,0.00013695,2]
[331937905,1720876235282,-10212.841,0.00013695,2]
[331937906,1720876235291,-5817.0,0.00013695,2]
[331937907,1720876235306,-3347.81,0.00013699,2]
[331937908,1720876235316,-940.17,0.00013699,2]
[331937909,1720876235326,-250.0,0.00013699,2]
[331937910,1720876235335,-200.0,0.00013699,2]
[331937911,1720876235347,-768.27411856,0.000137,2]
[331937912,1720876235357,-205.0,0.0001374,2]
[331937913,1720876235366,-292.33396335,0.0001375,2]
[331937914,1720876235379,-255.1387694,0.00013759,2]
[331937915,1720876235388,-300.0,0.00013759,2]
[331937916,1720876235398,-205.0,0.0001382,2]
[331937917,1720876235408,-202.63259192,0.00013829,2]
[331937918,1720876235417,-214.0,0.0001383,2]
[331937919,1720876235426,-287.04742753,0.00013849,2]
[331937920,1720876235435,-214.0,0.0001385,2]
[331937921,1720876235445,-228.31642,0.00013853,2]
[331937922,1720876235455,-200.0,0.0001386,2]
[331937923,1720876235464,-214.0,0.0001386,2]
[331937924,1720876235473,-2377.50564,0.0001386,2]
[331937925,1720876235482,-2377.50564,0.0001386,2]
[331937926,1720876235492,-235.2687,0.00013863,2]
[331937927,1720876235501,-200.0,0.0001388,2]
[331937928,1720876235510,-214.0,0.0001388,2]
[331937929,1720876235519,-500.0,0.00013887,2]
[331937930,1720876235528,-500.0,0.00013888,2]
[331937931,1720876235538,-200.0,0.00013888,2]
[331937932,1720876235547,-200.0,0.0001389,2]
[331937933,1720876235556,-214.0,0.0001389,2]
[331937934,1720876235565,-2500.0,0.0001389,2]
[331937935,1720876235574,-317.65,0.00013899,2]
[331937936,1720876235583,-280.42757695,0.00013899,2]
[331937937,1720876235593,-280.4275769,0.00013899,2]
[331937938,1720876235602,-280.4275769,0.00013899,2]
[331937939,1720876235611,-280.4275769,0.00013899,2]
[331937940,1720876235621,-280.4275769,0.000139,2]
[331937941,1720876235630,-280.4275769,0.000139,2]
[331937942,1720876235640,-280.4275769,0.000139,2]
[331937943,1720876235650,-466.5324,0.000139,2]
[331937944,1720876235659,-9902.2031,0.000139,2]
[331937945,1720876235669,-2059.6731,0.000139,2]
[331937946,1720876235679,-447.7161,0.000139,2]
[331937947,1720876235690,-701.5384,0.000139,2]
[331937948,1720876235700,-194.54721008,0.000139,2]
[331937949,1720876235710,-931.54561687,0.000139,2]
[331937950,1720876235719,-280.4275769,0.000139,2]
[331937951,1720876235729,-1555.49788676,0.000139,2]
[331937952,1720876235739,-316.90942906,0.000139,2]
[331937953,1720876235749,-173.47,0.00013909,2]
[331937954,1720876235759,-200.0,0.0001391,2]
[331937955,1720876235769,-214.0,0.0001391,2]
[331937956,1720876235779,-205.0,0.0001391,2]
[331937957,1720876235788,-200.0,0.0001392,2]
[331937958,1720876235798,-214.0,0.0001392,2]
[331937959,1720876235808,-200.0,0.0001394,2]
[331937960,1720876235817,-214.0,0.0001394,2]
[331937961,1720876235828,-200.0,0.0001395,2]
[331937962,1720876235838,-214.0,0.0001395,2]
[331937963,1720876235849,-500.0,0.00013962,2]
[331937964,1720876235858,-361.0,0.00013963,2]
[331937965,1720876235867,-150.0,0.00013963,2]
[331937966,1720876235877,-449.0,0.00013963,2]
[331937967,1720876235887,-444.0,0.00013963,2]
[331937968,1720876235897,-150.0,0.00013963,2]
[331937969,1720876235906,-214.0,0.0001397,2]
[331937970,1720876235916,-200.0,0.0001397,2]
[331937971,1720876235925,-1590.53,0.00013973,3]
[331937972,1720876235935,-214.0,0.0001398,2]
[331937973,1720876235946,-200.0,0.0001398,2]
[331937974,1720876235955,-444.5141,0.00013986,2]
[331937975,1720876235964,-214.0,0.0001399,2]
[331937976,1720876235974,-200.0,0.0001399,2]
[331937977,1720876235984,-205.0,0.0001399,2]
[331937978,1720876235994,-163.0210568,0.0001399,2]
[331937979,1720876236003,-163.0210568,0.0001399,2]
[331937980,1720876236013,-163.0210568,0.0001399,2]
[331937981,1720876236022,-163.0210568,0.0001399,2]
[331937982,1720876236032,-163.0210568,0.0001399,2]
[331937983,1720876236042,-201.0,0.0001399,2]
[331937984,1720876236052,-1010.6455664,0.0001399,2]
[331937985,1720876236062,-801.7388383,0.0001399,2]
[331937986,1720876236072,-592.8321102,0.0001399,2]
[331937987,1720876236081,-383.9253821,0.0001399,2]
[331937988,1720876236091,-175.018654,0.0001399,2]
[331937989,1720876236102,-37136.7787268,0.0001399,3]
[331937990,1720876236111,-216.45576739,0.0001399,2]
[331937991,1720876236120,-216.45576739,0.0001399,2]
[331937992,1720876236130,-163.0210568,0.00013998,2]
[331937993,1720876236140,-418.27518591,0.00013998,2]
[331937994,1720876236149,-505.27181161,0.00013998,2]
[331937995,1720876236159,-409.71507326,0.00013998,2]
[331937996,1720876236169,-293.71591696,0.00013998,2]
[331937997,1720876236178,-1219.5522946,0.00013998,2]
[331937998,1720876236188,-481.38731711,0.00013998,2]
[331937999,1720876236199,-473.82112203,0.00013998,2]
[331938000,1720876236208,-507.80426382,0.00013998,2]
[331938001,1720876236218,-837.4368193,0.00013998,2]
[331938002,1720876236227,-298.72476283,0.00013998,2]
[331938003,1720876236237,-500.0,0.00013998,2]
[331938004,1720876236246,-605.84712302,0.00013998,2]
[331938005,1720876236256,-500.0,0.00013998,2]
[331938006,1720876236266,-527.75,0.00013998,2]
[331938007,1720876236276,-406.49183502,0.00013998,2]
[331938008,1720876236285,-500.0,0.00013998,2]
[331938009,1720876236294,-500.0,0.00013998,2]
[331938010,1720876236309,-500.0,0.00013998,2]
[331938011,1720876236318,-500.0,0.00013998,2]
[331938012,1720876236328,-500.0,0.00013998,2]
[331938013,1720876236337,-500.0,0.00013998,2]
[331938014,1720876236349,-500.0,0.00013998,2]
[331938015,1720876236359,-500.0,0.00013998,2]
[331938016,1720876236368,-500.0,0.00013998,2]
[331938017,1720876236378,-537.01514529,0.00013998,2]
[331938018,1720876236387,-500.0,0.00013998,2]
[331938019,1720876236397,-500.0,0.00013998,2]
[331938020,1720876236406,-500.0,0.00013998,2]
[331938021,1720876236415,-501.72678807,0.00013998,2]
[331938022,1720876236424,-500.0,0.00013998,2]
[331938023,1720876236433,-500.0,0.00013998,2]
[331938024,1720876236442,-500.0,0.00013998,2]
[331938025,1720876236452,-500.0,0.00013998,2]
[331938026,1720876236461,-664.52,0.00013998,2]
[331938027,1720876236471,-500.0,0.00013998,2]
[331938028,1720876236481,-500.0,0.00013998,2]
[331938029,1720876236491,-500.0,0.00013998,2]
[331938030,1720876236500,-500.0,0.00013998,2]
[331938031,1720876236509,-572.37,0.00013998,2]
[331938032,1720876236518,-500.0,0.00013998,2]
[331938033,1720876236527,-550.86631943,0.00013998,2]
[331938034,1720876236537,-500.0,0.00013998,2]
[331938035,1720876236546,-500.0,0.00013998,2]
[331938036,1720876236555,-2770.98,0.00013998,2]
[331938037,1720876236565,-500.0,0.00013998,2]
[331938038,1720876236575,-500.0,0.00013998,2]
[331938039,1720876236585,-178.48363946,0.00013998,2]
[331938040,1720876236595,-500.0,0.00013998,2]
[331938041,1720876236604,-500.0,0.00013998,2]
[331938042,1720876236615,-500.0,0.00013998,2]
[331938043,1720876236624,-500.0,0.00013998,2]
[331938044,1720876236634,-500.0,0.00013998,2]
[331938045,1720876236644,-500.0,0.00013998,2]
[331938046,1720876236655,-154.83751245,0.00013999,2]
[331938047,1720876236664,-500.0,0.00013999,2]
[331938048,1720876236674,-500.0,0.00013999,2]
[331938049,1720876236683,-500.0,0.00013999,2]
[331938050,1720876236693,-185.59173461,0.00013999,2]
[331938051,1720876236702,-500.0,0.00013999,2]
[331938052,1720876236712,-188.92918688,0.00013999,2]
[331938053,1720876236721,-500.0,0.00013999,2]
[331938054,1720876236731,-500.0,0.00013999,2]
[331938055,1720876236741,-155.3283253,0.00013999,2]
[331938056,1720876236750,-500.0,0.00013999,2]
[331938057,1720876236760,-500.0,0.00013999,2]
[331938058,1720876236770,-500.0,0.00013999,2]
[331938059,1720876236779,-500.0,0.00013999,2]
[331938060,1720876236789,-500.0,0.00013999,2]
[331938061,1720876236799,-564.61275293,0.00013999,2]
[331938062,1720876236808,-500.0,0.00013999,2]
[331938063,1720876236818,-500.0,0.00013999,2]
[331938064,1720876236827,-500.0,0.00013999,2]
[331938065,1720876236837,-500.0,0.00013999,2]
[331938066,1720876236848,-500.0,0.00013999,2]
[331938067,1720876236858,-500.0,0.00013999,2]
[331938068,1720876236867,-500.0,0.00013999,2]
[331938069,1720876236876,-500.0,0.00013999,2]
[331938070,1720876236886,-500.0,0.00013999,2]
[331938071,1720876236896,-500.0,0.00013999,2]
[331938072,1720876236906,-500.0,0.00013999,2]
[331938073,1720876236915,-500.0,0.00013999,2]
[331938074,1720876236926,-500.0,0.00013999,2]
[331938075,1720876236936,-500.0,0.00013999,2]
[331938076,1720876236946,-500.0,0.00013999,2]
[331938077,1720876236956,-500.0,0.00013999,2]
[331938078,1720876236966,-500.0,0.00013999,2]
[331938079,1720876236976,-500.0,0.00013999,2]
[331938080,1720876236985,-500.0,0.00013999,2]
[331938081,1720876236995,-183.41609247,0.00013999,2]
[331938082,1720876237005,-500.0,0.00013999,2]
[331938083,1720876237015,-500.0,0.00013999,2]
[331938084,1720876237025,-516.93380592,0.00013999,2]
[331938085,1720876237035,-500.0,0.00013999,2]
[331938086,1720876237044,-197.33630274,0.00013999,2]